[Event "*** Titled Tuesday Blitz"]
[Site "Chess.com"]
[Date "2020.05.19"]
[Round "3"]
[White "Zq1"]
[Black "MrChampion_Coach"]
[Result "1-0"]
[WhiteElo "2524"]
[BlackElo "2295"]
[TimeControl "180+1"]
[EndTime "12:30:02 PDT"]
[Termination "Zq1 won on time"]

1. d4 {[%clk 0:03:00.9]} 1... Nf6 {[%clk 0:02:55.7]} 2. c4 {[%clk 0:03:00.5]}
2... g6 {[%clk 0:02:55.5]} 3. Nc3 {[%clk 0:02:59.9]} 3... Bg7 {[%clk 0:02:55.6]}
4. e4 {[%clk 0:02:59.5]} 4... d6 {[%clk 0:02:55.9]} 5. Nf3 {[%clk 0:02:59.5]}
5... O-O {[%clk 0:02:55.6]} 6. Be2 {[%clk 0:02:59.7]} 6... e5 {[%clk 0:02:55.8]}
7. O-O {[%clk 0:02:59.4]} 7... Nc6 {[%clk 0:02:56.1]} 8. d5 {[%clk 0:02:59.4]}
8... Ne7 {[%clk 0:02:56.5]} 9. Ne1 {[%clk 0:02:59.6]} 9... Nd7 {[%clk
0:02:56.1]} 10. Be3 {[%clk 0:02:59.6]} 10... f5 {[%clk 0:02:56.1]} 11. f3 {[%clk
0:02:59.7]} 11... f4 {[%clk 0:02:56.4]} 12. Bf2 {[%clk 0:02:59.9]} 12... g5
{[%clk 0:02:56.8]} 13. Nb5 {[%clk 0:03:00.1]} 13... Nf6 {[%clk 0:02:44]} 14.
Nxa7 {[%clk 0:02:59]} 14... Bd7 {[%clk 0:02:44.1]} 15. Nb5 {[%clk 0:02:58.7]}
15... g4 {[%clk 0:02:41.1]} 16. fxg4 {[%clk 0:02:55.1]} 16... Nxe4 {[%clk
0:02:39.5]} 17. Bd3 {[%clk 0:02:52]} 17... Nxf2 {[%clk 0:02:30.9]} 18. Rxf2
{[%clk 0:02:51.3]} 18... Kh8 {[%clk 0:01:56.8]} 19. Nc3 {[%clk 0:02:49.4]} 19...
c6 {[%clk 0:01:48.3]} 20. h3 {[%clk 0:02:46.5]} 20... cxd5 {[%clk 0:01:41.7]}
21. cxd5 {[%clk 0:02:45.8]} 21... Qb6 {[%clk 0:01:41]} 22. Nf3 {[%clk
0:02:36.9]} 22... Ra5 {[%clk 0:01:29.8]} 23. Be4 {[%clk 0:02:35.2]} 23... Rc8
{[%clk 0:01:15.5]} 24. Qd3 {[%clk 0:02:18.2]} 24... Bb5 {[%clk 0:01:09.3]} 25.
Nxb5 {[%clk 0:02:12.5]} 25... Rxb5 {[%clk 0:01:10.2]} 26. b3 {[%clk 0:02:04.8]}
26... Rbc5 {[%clk 0:01:02.7]} 27. Raf1 {[%clk 0:02:01.7]} 27... Rc3 {[%clk
0:01:01.3]} 28. Qd2 {[%clk 0:01:56.2]} 28... Re3 {[%clk 0:00:56.8]} 29. Bb1
{[%clk 0:01:53.2]} 29... e4 {[%clk 0:00:50]} 30. Ng5 {[%clk 0:01:49.6]} 30...
Bc3 {[%clk 0:00:46.2]} 31. Qd1 {[%clk 0:01:44.7]} 31... Bb2 {[%clk 0:00:25.7]}
32. Bxe4 {[%clk 0:01:02.2]} 32... Rc1 {[%clk 0:00:21.8]} 33. Qd2 {[%clk
0:00:29.6]} 33... Rxf1+ {[%clk 0:00:20.3]} 34. Kxf1 {[%clk 0:00:28.8]} 34... Bc3
{[%clk 0:00:20.4]} 35. Qd1 {[%clk 0:00:25.8]} 35... Re1+ {[%clk 0:00:16.7]} 36.
Qxe1 {[%clk 0:00:25.3]} 36... Bxe1 {[%clk 0:00:17.6]} 37. Kxe1 {[%clk
0:00:25.4]} 37... Qe3+ {[%clk 0:00:16.9]} 38. Re2 {[%clk 0:00:23.3]} 38... Qc3+
{[%clk 0:00:15.2]} 39. Kf1 {[%clk 0:00:21.9]} 39... Qc1+ {[%clk 0:00:11.2]} 40.
Kf2 {[%clk 0:00:21.8]} 40... Qc5+ {[%clk 0:00:10.7]} 41. Kf3 {[%clk 0:00:21.7]}
41... Nxd5 {[%clk 0:00:11.6]} 42. Ne6 {[%clk 0:00:15.7]} 42... Qc3+ {[%clk
0:00:10.7]} 43. Kf2 {[%clk 0:00:15.8]} 43... Ne3 {[%clk 0:00:09.6]} 44. Nxf4
{[%clk 0:00:12.8]} 44... Nd1+ {[%clk 0:00:09.3]} 45. Kf1 {[%clk 0:00:12.1]}
45... Qc1 {[%clk 0:00:10.2]} 46. Nd3 {[%clk 0:00:10.9]} 46... Qa1 {[%clk
0:00:09.2]} 47. Re1 {[%clk 0:00:09.7]} 47... Qd4 {[%clk 0:00:08.8]} 48. Rxd1
{[%clk 0:00:08.2]} 48... Qxe4 {[%clk 0:00:08.7]} 49. Ne1 {[%clk 0:00:08.8]}
49... Qf4+ {[%clk 0:00:08]} 50. Nf3 {[%clk 0:00:08.7]} 50... Qb4 {[%clk
0:00:08.9]} 51. Rd4 {[%clk 0:00:07.9]} 51... Qc5 {[%clk 0:00:08.4]} 52. Rd2
{[%clk 0:00:07.7]} 52... d5 {[%clk 0:00:07.8]} 53. Ke2 {[%clk 0:00:07.6]} 53...
Qb5+ {[%clk 0:00:08.1]} 54. Rd3 {[%clk 0:00:07.6]} 54... Kg7 {[%clk 0:00:08.5]}
55. Ke3 {[%clk 0:00:07.8]} 55... Qc5+ {[%clk 0:00:08]} 56. Nd4 {[%clk
0:00:08.2]} 56... Kf6 {[%clk 0:00:08.3]} 57. Rd2 {[%clk 0:00:07.8]} 57... Ke5
{[%clk 0:00:07.7]} 58. h4 {[%clk 0:00:06.9]} 58... Qc3+ {[%clk 0:00:06.3]} 59.
Rd3 {[%clk 0:00:06.9]} 59... Qc5 {[%clk 0:00:05.9]} 60. Rd2 {[%clk 0:00:06.6]}
60... Kd6 {[%clk 0:00:04.8]} 61. Ke2 {[%clk 0:00:03.4]} 61... Ke7 {[%clk
0:00:03.1]} 62. Rd3 {[%clk 0:00:03.2]} 62... Qc1 {[%clk 0:00:02.2]} 63. Rd2
{[%clk 0:00:03.2]} 1-0

[Event "*** Titled Tuesday Blitz"]
[Site "Chess.com"]
[Date "2020.05.19"]
[Round "3"]
[White "tteshan"]
[Black "ChessicallyInclined"]
[Result "0-1"]
[WhiteElo "2223"]
[BlackElo "2497"]
[TimeControl "180+1"]
[EndTime "12:30:02 PDT"]
[Termination "ChessicallyInclined won by resignation"]

1. e4 {[%clk 0:02:40.9]} 1... c5 {[%clk 0:02:59.3]} 2. c3 {[%clk 0:02:40]} 2...
Nf6 {[%clk 0:02:58.9]} 3. e5 {[%clk 0:02:38.6]} 3... Nd5 {[%clk 0:02:59.4]} 4.
Nf3 {[%clk 0:02:38.6]} 4... Nc6 {[%clk 0:02:55.1]} 5. Bc4 {[%clk 0:02:38.5]}
5... Nb6 {[%clk 0:02:55.2]} 6. Bb3 {[%clk 0:02:38.7]} 6... d5 {[%clk 0:02:54.6]}
7. exd6 {[%clk 0:02:38.1]} 7... Qxd6 {[%clk 0:02:52.9]} 8. O-O {[%clk
0:02:38.1]} 8... Be6 {[%clk 0:02:52.4]} 9. Re1 {[%clk 0:02:34.9]} 9... Bxb3
{[%clk 0:02:47.5]} 10. Qxb3 {[%clk 0:02:28.8]} 10... c4 {[%clk 0:02:47]} 11. Qc2
{[%clk 0:02:28.6]} 11... g6 {[%clk 0:02:41.8]} 12. b3 {[%clk 0:02:27.1]} 12...
Bg7 {[%clk 0:02:38.2]} 13. Ba3 {[%clk 0:02:24.1]} 13... Qd7 {[%clk 0:02:35.4]}
14. Bc5 {[%clk 0:02:05.3]} 14... cxb3 {[%clk 0:02:28.7]} 15. axb3 {[%clk
0:02:03.1]} 15... Nd5 {[%clk 0:02:28.8]} 16. Na3 {[%clk 0:01:48.4]} 16... Nf4
{[%clk 0:02:23.3]} 17. Nd4 {[%clk 0:00:38.5]} 17... Nxd4 {[%clk 0:02:14.1]} 18.
cxd4 {[%clk 0:00:38]} 18... O-O {[%clk 0:01:58.9]} 19. Rxe7 {[%clk 0:00:36.4]}
19... Qg4 {[%clk 0:01:58.4]} 20. Qe4 {[%clk 0:00:34]} 20... Rad8 {[%clk
0:01:31]} 21. Nc4 {[%clk 0:00:31.5]} 21... Bxd4 {[%clk 0:01:25.1]} 22. Bxd4
{[%clk 0:00:25.1]} 22... Rxd4 {[%clk 0:01:26]} 23. Qf3 {[%clk 0:00:24.8]} 23...
Qxf3 {[%clk 0:01:16.7]} 24. gxf3 {[%clk 0:00:25.7]} 24... b5 {[%clk 0:01:16.6]}
25. Ne3 {[%clk 0:00:22.7]} 25... Rxd2 {[%clk 0:01:13.7]} 26. Rexa7 {[%clk
0:00:22]} 26... Nh3+ {[%clk 0:01:12.1]} 27. Kg2 {[%clk 0:00:21.9]} 27... Nxf2
{[%clk 0:01:11.7]} 28. R7a2 {[%clk 0:00:20.6]} 28... Rxa2 {[%clk 0:01:11.3]} 29.
Rxa2 {[%clk 0:00:21.5]} 29... Nd3 {[%clk 0:01:11.8]} 30. Rd2 {[%clk 0:00:21.3]}
30... Rd8 {[%clk 0:01:07.8]} 31. Kg1 {[%clk 0:00:19.2]} 31... Kf8 {[%clk
0:01:00.2]} 32. Nc2 {[%clk 0:00:18.6]} 32... Ke7 {[%clk 0:01:00.2]} 33. Kf1
{[%clk 0:00:16.2]} 33... Rd6 {[%clk 0:00:52.5]} 34. Ke2 {[%clk 0:00:15.7]} 34...
Nc1+ {[%clk 0:00:52.3]} 35. Kd1 {[%clk 0:00:15.9]} 35... Rxd2+ {[%clk
0:00:52.3]} 36. Kxd2 {[%clk 0:00:16.2]} 36... Nxb3+ {[%clk 0:00:52.8]} 37. Kc3
{[%clk 0:00:16.7]} 37... Nc1 {[%clk 0:00:47.1]} 38. Nd4 {[%clk 0:00:16.6]} 38...
Kf6 {[%clk 0:00:43.3]} 39. Nxb5 {[%clk 0:00:16.3]} 39... Ke5 {[%clk 0:00:39.4]}
40. Kd2 {[%clk 0:00:16.6]} 40... Nb3+ {[%clk 0:00:39.3]} 41. Ke3 {[%clk
0:00:16.6]} 41... Nc5 {[%clk 0:00:38]} 42. Nd4 {[%clk 0:00:16.2]} 42... Ne6
{[%clk 0:00:34.6]} 43. Ne2 {[%clk 0:00:16.6]} 43... Kf5 {[%clk 0:00:34.2]} 44.
Kf2 {[%clk 0:00:16.9]} 44... h5 {[%clk 0:00:33.4]} 45. Ng3+ {[%clk 0:00:16.8]}
45... Kf4 {[%clk 0:00:32.6]} 46. Ne4 {[%clk 0:00:16.7]} 46... Nd4 {[%clk
0:00:28.5]} 47. Nd2 {[%clk 0:00:16]} 47... h4 {[%clk 0:00:28.3]} 48. Kg2 {[%clk
0:00:15.4]} 48... Ke3 {[%clk 0:00:26.8]} 49. Ne4 {[%clk 0:00:13.6]} 49... Nxf3
{[%clk 0:00:26.7]} 50. Nd6 {[%clk 0:00:13.6]} 50... f5 {[%clk 0:00:24.3]} 51.
Nc4+ {[%clk 0:00:14]} 51... Kf4 {[%clk 0:00:24.5]} 52. Nd6 {[%clk 0:00:11.7]}
52... Ne5 {[%clk 0:00:24.3]} 53. Ne8 {[%clk 0:00:11.2]} 53... g5 {[%clk
0:00:24.2]} 54. Nf6 {[%clk 0:00:11.1]} 54... g4 {[%clk 0:00:23.7]} 55. Nh5+
{[%clk 0:00:10.3]} 55... Kg5 {[%clk 0:00:23.7]} 56. Ng7 {[%clk 0:00:10.5]} 56...
h3+ {[%clk 0:00:23.5]} 57. Kf2 {[%clk 0:00:09.9]} 57... Nf3 {[%clk 0:00:22.8]}
58. Ne6+ {[%clk 0:00:09.8]} 58... Kf6 {[%clk 0:00:23.1]} 59. Nf4 {[%clk
0:00:09.4]} 59... Nxh2 {[%clk 0:00:23.4]} 60. Kg3 {[%clk 0:00:09.3]} 60... Nf3
{[%clk 0:00:21.8]} 61. Ne2 {[%clk 0:00:08.9]} 61... Kg5 {[%clk 0:00:21.1]} 62.
Nc1 {[%clk 0:00:06.6]} 62... f4+ {[%clk 0:00:20.5]} 63. Kf2 {[%clk 0:00:06.6]}
63... Ne5 {[%clk 0:00:20.8]} 64. Ne2 {[%clk 0:00:06.1]} 64... Kf5 {[%clk
0:00:21.1]} 65. Kg1 {[%clk 0:00:06.3]} 65... Ke4 {[%clk 0:00:21]} 66. Nc3+
{[%clk 0:00:06.5]} 66... Kf3 {[%clk 0:00:20.4]} 67. Nd1 {[%clk 0:00:07.4]} 67...
g3 {[%clk 0:00:20.3]} 68. Kh1 {[%clk 0:00:07.1]} 68... Nd3 {[%clk 0:00:20.4]}
69. Kg1 {[%clk 0:00:07.2]} 69... h2+ {[%clk 0:00:19.3]} 70. Kh1 {[%clk
0:00:07.3]} 70... Ke2 {[%clk 0:00:17.3]} 71. Kg2 {[%clk 0:00:04.2]} 71... Kxd1
{[%clk 0:00:17.4]} 0-1

[Event "*** Titled Tuesday Blitz"]
[Site "Chess.com"]
[Date "2020.05.19"]
[Round "3"]
[White "ninullia"]
[Black "SirMittensofMittensville"]
[Result "0-1"]
[WhiteElo "2411"]
[BlackElo "2648"]
[TimeControl "180+1"]
[EndTime "12:30:03 PDT"]
[Termination "SirMittensofMittensville won on time"]

1. d4 {[%clk 0:03:00.9]} 1... Nf6 {[%clk 0:02:59]} 2. c4 {[%clk 0:03:00.9]} 2...
e6 {[%clk 0:02:58.5]} 3. Nf3 {[%clk 0:03:00.4]} 3... Bb4+ {[%clk 0:02:59]} 4.
Bd2 {[%clk 0:02:59.6]} 4... Bxd2+ {[%clk 0:02:58.3]} 5. Qxd2 {[%clk 0:03:00.5]}
5... O-O {[%clk 0:02:58.7]} 6. Nc3 {[%clk 0:03:01.1]} 6... d5 {[%clk 0:02:59.6]}
7. e3 {[%clk 0:03:00.6]} 7... Qe7 {[%clk 0:02:59.6]} 8. Rc1 {[%clk 0:02:59]}
8... Rd8 {[%clk 0:02:59.3]} 9. Qc2 {[%clk 0:02:52.1]} 9... a6 {[%clk 0:02:59.2]}
10. cxd5 {[%clk 0:02:45.3]} 10... exd5 {[%clk 0:03:00.1]} 11. h3 {[%clk
0:02:45.6]} 11... c6 {[%clk 0:02:54.2]} 12. Bd3 {[%clk 0:02:45.5]} 12... Nbd7
{[%clk 0:02:48.6]} 13. O-O {[%clk 0:02:44.7]} 13... Re8 {[%clk 0:02:45.8]} 14.
a3 {[%clk 0:02:27.7]} 14... Ne4 {[%clk 0:02:32.4]} 15. b4 {[%clk 0:02:05.8]}
15... a5 {[%clk 0:02:19.4]} 16. b5 {[%clk 0:02:00.8]} 16... Qxa3 {[%clk
0:02:03.7]} 17. bxc6 {[%clk 0:01:46.5]} 17... bxc6 {[%clk 0:02:04.6]} 18. Nxe4
{[%clk 0:01:43.9]} 18... dxe4 {[%clk 0:02:05]} 19. Bxe4 {[%clk 0:01:44.5]} 19...
Ba6 {[%clk 0:01:54.4]} 20. Bxh7+ {[%clk 0:01:02.7]} 20... Kh8 {[%clk 0:01:52.6]}
21. Bf5 {[%clk 0:01:02.8]} 21... Nf6 {[%clk 0:01:51]} 22. Rfd1 {[%clk
0:00:54.2]} 22... Bb5 {[%clk 0:01:49.9]} 23. Ne5 {[%clk 0:00:49.5]} 23... Kg8
{[%clk 0:01:41.1]} 24. Bd3 {[%clk 0:00:45.6]} 24... Ba4 {[%clk 0:01:33.8]} 25.
Qc4 {[%clk 0:00:40.1]} 25... Bb3 {[%clk 0:01:28.2]} 26. Rc3 {[%clk 0:00:30]}
26... Bxc4 {[%clk 0:01:26.3]} 27. Rxa3 {[%clk 0:00:29.8]} 27... Bxd3 {[%clk
0:01:23.8]} 28. Rdxd3 {[%clk 0:00:23.7]} 28... c5 {[%clk 0:01:24.3]} 29. Ra4
{[%clk 0:00:17.2]} 29... Nd5 {[%clk 0:01:19.4]} 30. Rda3 {[%clk 0:00:12]} 30...
cxd4 {[%clk 0:01:03.7]} 31. exd4 {[%clk 0:00:11.9]} 31... Red8 {[%clk
0:01:00.2]} 32. Rxa5 {[%clk 0:00:07]} 32... Rxa5 {[%clk 0:01:01.1]} 33. Rxa5
{[%clk 0:00:07.8]} 33... Nf4 {[%clk 0:01:02]} 34. Nc6 {[%clk 0:00:04]} 34... Rd6
{[%clk 0:00:58.9]} 35. d5 {[%clk 0:00:03.9]} 35... Kh7 {[%clk 0:00:57.4]} 36.
Nb4 {[%clk 0:00:02.4]} 36... Rg6 {[%clk 0:00:57.3]} 37. g3 {[%clk 0:00:02.3]}
37... Nxh3+ {[%clk 0:00:57.9]} 38. Kg2 {[%clk 0:00:02.9]} 38... Ng5 {[%clk
0:00:57.9]} 39. f4 {[%clk 0:00:03.1]} 39... Ne4 {[%clk 0:00:58.3]} 40. Kf3
{[%clk 0:00:03.3]} 40... Nd6 {[%clk 0:00:46.8]} 41. Ra6 {[%clk 0:00:03.2]} 41...
f5 {[%clk 0:00:40.6]} 42. Nd3 {[%clk 0:00:01.9]} 42... Rh6 {[%clk 0:00:39.7]}
43. Ne5 {[%clk 0:00:02]} 43... Kg8 {[%clk 0:00:38.8]} 44. Rc6 {[%clk 0:00:01.7]}
44... Kf8 {[%clk 0:00:37.7]} 45. Rc7 {[%clk 0:00:01.9]} 45... Ne4 {[%clk
0:00:35.3]} 46. Rc8+ {[%clk 0:00:02.1]} 46... Ke7 {[%clk 0:00:35.4]} 47. Rc7+
{[%clk 0:00:02.5]} 47... Kd6 {[%clk 0:00:34.3]} 48. Rd7+ {[%clk 0:00:02.7]}
48... Kc5 {[%clk 0:00:33.9]} 49. Rxg7 {[%clk 0:00:02.8]} 49... Kxd5 {[%clk
0:00:33.5]} 50. g4 {[%clk 0:00:03.3]} 50... Rh3+ {[%clk 0:00:30.9]} 51. Kg2
{[%clk 0:00:03.6]} 51... Rg3+ {[%clk 0:00:31.2]} 52. Kh2 {[%clk 0:00:04.3]}
52... Kd4 {[%clk 0:00:25]} 53. Rd7+ {[%clk 0:00:04.3]} 53... Ke3 {[%clk
0:00:22.3]} 54. g5 {[%clk 0:00:04.7]} 54... Kxf4 {[%clk 0:00:21]} 55. Nd3+
{[%clk 0:00:04.6]} 55... Kxg5 {[%clk 0:00:20.5]} 56. Rg7+ {[%clk 0:00:05.1]}
56... Kh4 {[%clk 0:00:20.2]} 57. Rh7+ {[%clk 0:00:05.7]} 57... Kg4 {[%clk
0:00:20.4]} 58. Rg7+ {[%clk 0:00:06.2]} 58... Kf3 {[%clk 0:00:21]} 59. Ne5+
{[%clk 0:00:06.4]} 59... Kf2 {[%clk 0:00:20.4]} 60. Nd3+ {[%clk 0:00:06.7]}
60... Kf3 {[%clk 0:00:18.5]} 61. Ne5+ {[%clk 0:00:06.3]} 61... Kf4 {[%clk
0:00:19.1]} 62. Nd3+ {[%clk 0:00:06.5]} 62... Rxd3 {[%clk 0:00:18.9]} 63. Kg2
{[%clk 0:00:05.3]} 63... Rd2+ {[%clk 0:00:18.9]} 64. Kf1 {[%clk 0:00:04.6]}
64... Kf3 {[%clk 0:00:16.9]} 65. Ke1 {[%clk 0:00:04.9]} 65... Re2+ {[%clk
0:00:17.2]} 66. Kf1 {[%clk 0:00:05]} 66... Rf2+ {[%clk 0:00:17.1]} 67. Kg1
{[%clk 0:00:04.6]} 67... f4 {[%clk 0:00:16.9]} 0-1

[Event "*** Titled Tuesday Blitz"]
[Site "Chess.com"]
[Date "2020.05.19"]
[Round "3"]
[White "BogdanDeac"]
[Black "Arjun2002"]
[Result "1/2-1/2"]
[WhiteElo "2983"]
[BlackElo "2661"]
[TimeControl "180+1"]
[EndTime "12:30:05 PDT"]
[Termination "Game drawn - insufficient material"]

1. e4 {[%clk 0:03:00.9]} 1... c5 {[%clk 0:03:00]} 2. Nf3 {[%clk 0:03:00.6]} 2...
Nc6 {[%clk 0:03:00]} 3. Nc3 {[%clk 0:03:01.1]} 3... d6 {[%clk 0:02:59.5]} 4. d4
{[%clk 0:02:58.6]} 4... cxd4 {[%clk 0:03:00.4]} 5. Nxd4 {[%clk 0:02:59.5]} 5...
Nf6 {[%clk 0:03:00.8]} 6. h3 {[%clk 0:02:59.6]} 6... g6 {[%clk 0:02:56.8]} 7.
Bc4 {[%clk 0:02:58]} 7... Bg7 {[%clk 0:02:53.1]} 8. O-O {[%clk 0:02:58.1]} 8...
O-O {[%clk 0:02:49.1]} 9. Re1 {[%clk 0:02:54]} 9... Bd7 {[%clk 0:02:41.7]} 10.
Bb3 {[%clk 0:02:39.9]} 10... a6 {[%clk 0:02:36.1]} 11. a4 {[%clk 0:02:02.2]}
11... Rc8 {[%clk 0:02:31.9]} 12. Be3 {[%clk 0:01:57.7]} 12... Na5 {[%clk
0:02:29.4]} 13. Qe2 {[%clk 0:01:53]} 13... Nxb3 {[%clk 0:02:22.2]} 14. cxb3
{[%clk 0:01:51]} 14... e5 {[%clk 0:02:00.3]} 15. Nf3 {[%clk 0:01:37.4]} 15...
Be6 {[%clk 0:02:00.4]} 16. b4 {[%clk 0:01:37.5]} 16... Qe7 {[%clk 0:01:49.3]}
17. Red1 {[%clk 0:01:24.5]} 17... Rfd8 {[%clk 0:01:42.2]} 18. Bb6 {[%clk
0:01:19.1]} 18... Rd7 {[%clk 0:01:33]} 19. Rd2 {[%clk 0:01:14.4]} 19... Bc4
{[%clk 0:01:18.3]} 20. Qe1 {[%clk 0:01:13.8]} 20... d5 {[%clk 0:01:11.9]} 21.
Bc5 {[%clk 0:00:45]} 21... Qe6 {[%clk 0:00:47.7]} 22. exd5 {[%clk 0:00:44.1]}
22... Nxd5 {[%clk 0:00:46.1]} 23. Rad1 {[%clk 0:00:43.7]} 23... Rcd8 {[%clk
0:00:44.2]} 24. Qe4 {[%clk 0:00:30.3]} 24... Nxc3 {[%clk 0:00:38]} 25. bxc3
{[%clk 0:00:28.8]} 25... Rxd2 {[%clk 0:00:31.2]} 26. Rxd2 {[%clk 0:00:28.7]}
26... Rxd2 {[%clk 0:00:28.6]} 27. Nxd2 {[%clk 0:00:29.2]} 27... Bd5 {[%clk
0:00:28.9]} 28. Qe2 {[%clk 0:00:19.9]} 28... Bc6 {[%clk 0:00:25.9]} 29. a5
{[%clk 0:00:18.6]} 29... e4 {[%clk 0:00:22.3]} 30. Qe3 {[%clk 0:00:15.6]} 30...
Qa2 {[%clk 0:00:18.3]} 31. Bd4 {[%clk 0:00:14.7]} 31... Qd5 {[%clk 0:00:09.4]}
32. Bxg7 {[%clk 0:00:11.5]} 32... Kxg7 {[%clk 0:00:08.1]} 33. c4 {[%clk
0:00:11.7]} 33... Qd6 {[%clk 0:00:07]} 34. Qc3+ {[%clk 0:00:10]} 34... Kg8
{[%clk 0:00:07.3]} 35. Nb3 {[%clk 0:00:09.2]} 35... Qd1+ {[%clk 0:00:06.8]} 36.
Kh2 {[%clk 0:00:09]} 36... Qd6+ {[%clk 0:00:07.5]} 37. g3 {[%clk 0:00:08.9]}
37... Qe6 {[%clk 0:00:07.1]} 38. Nc5 {[%clk 0:00:08.2]} 38... Qf5 {[%clk
0:00:07.3]} 39. Qe3 {[%clk 0:00:07.9]} 39... Qe5 {[%clk 0:00:07.7]} 40. Nb3
{[%clk 0:00:06.3]} 40... Qb2 {[%clk 0:00:07.8]} 41. g4 {[%clk 0:00:04.4]} 41...
Kg7 {[%clk 0:00:07.1]} 42. Qd4+ {[%clk 0:00:04.1]} 42... Qxd4 {[%clk 0:00:06.9]}
43. Nxd4 {[%clk 0:00:05]} 43... Bd7 {[%clk 0:00:07.4]} 44. Kg3 {[%clk 0:00:04]}
44... g5 {[%clk 0:00:07.6]} 45. h4 {[%clk 0:00:04]} 45... h6 {[%clk 0:00:07.4]}
46. hxg5 {[%clk 0:00:04.3]} 46... hxg5 {[%clk 0:00:08.3]} 47. b5 {[%clk
0:00:04.9]} 47... Kf6 {[%clk 0:00:07.3]} 48. bxa6 {[%clk 0:00:05.1]} 48... bxa6
{[%clk 0:00:06.9]} 49. Nc2 {[%clk 0:00:06]} 49... Ke5 {[%clk 0:00:07]} 50. f3
{[%clk 0:00:06.5]} 50... exf3 {[%clk 0:00:06.7]} 51. Kxf3 {[%clk 0:00:07.4]}
51... f5 {[%clk 0:00:06.5]} 52. gxf5 {[%clk 0:00:06.9]} 52... Bxf5 {[%clk
0:00:06.8]} 53. Nb4 {[%clk 0:00:07.4]} 53... Be6 {[%clk 0:00:06.6]} 54. c5
{[%clk 0:00:06.6]} 54... Bc8 {[%clk 0:00:06.8]} 55. Kg3 {[%clk 0:00:05.9]} 55...
Kd4 {[%clk 0:00:03.5]} 56. c6 {[%clk 0:00:05.9]} 56... Kc5 {[%clk 0:00:03.9]}
57. Nxa6+ {[%clk 0:00:05.8]} 57... Bxa6 {[%clk 0:00:03.4]} 58. Kg4 {[%clk
0:00:06.1]} 58... Kxc6 {[%clk 0:00:03.8]} 59. Kxg5 {[%clk 0:00:06.6]} 59... Kb5
{[%clk 0:00:04.7]} 60. Kf4 {[%clk 0:00:06.6]} 60... Kxa5 {[%clk 0:00:05.6]}
1/2-1/2

[Event "*** Titled Tuesday Blitz"]
[Site "Chess.com"]
[Date "2020.05.19"]
[Round "3"]
[White "PavelChernomordik"]
[Black "Harry_Rakkel"]
[Result "0-1"]
[WhiteElo "2388"]
[BlackElo "2583"]
[TimeControl "180+1"]
[EndTime "12:30:05 PDT"]
[Termination "Harry_Rakkel won by resignation"]

1. e4 {[%clk 0:03:00.9]} 1... c5 {[%clk 0:02:59]} 2. Nc3 {[%clk 0:02:51.8]} 2...
Nc6 {[%clk 0:02:57.2]} 3. Bb5 {[%clk 0:02:43.3]} 3... Nd4 {[%clk 0:02:56.4]} 4.
Bc4 {[%clk 0:02:42]} 4... e6 {[%clk 0:02:55.9]} 5. Nge2 {[%clk 0:02:40.8]} 5...
Ne7 {[%clk 0:02:55.4]} 6. O-O {[%clk 0:02:38.4]} 6... Nec6 {[%clk 0:02:53.5]} 7.
d3 {[%clk 0:02:38]} 7... a6 {[%clk 0:02:52.3]} 8. a4 {[%clk 0:02:37.1]} 8... Be7
{[%clk 0:02:40.6]} 9. f4 {[%clk 0:02:34]} 9... O-O {[%clk 0:02:40]} 10. f5
{[%clk 0:02:30.1]} 10... Nxe2+ {[%clk 0:02:35.1]} 11. Qxe2 {[%clk 0:02:26.1]}
11... Nd4 {[%clk 0:02:34.6]} 12. Qd1 {[%clk 0:02:22.7]} 12... b6 {[%clk
0:02:26.1]} 13. Be3 {[%clk 0:02:12]} 13... Bf6 {[%clk 0:02:18.2]} 14. Rb1 {[%clk
0:02:02.3]} 14... Bb7 {[%clk 0:02:08.4]} 15. Ba2 {[%clk 0:01:55.8]} 15... exf5
{[%clk 0:01:51.1]} 16. exf5 {[%clk 0:01:54.3]} 16... Re8 {[%clk 0:01:50.8]} 17.
Qd2 {[%clk 0:01:50.6]} 17... d5 {[%clk 0:01:46.9]} 18. Nd1 {[%clk 0:01:39.4]}
18... Qd7 {[%clk 0:01:43.8]} 19. Qf2 {[%clk 0:01:36.6]} 19... Qxa4 {[%clk
0:01:39.7]} 20. Nc3 {[%clk 0:01:34.6]} 20... Qxc2 {[%clk 0:01:33.4]} 21. Nxd5
{[%clk 0:01:16.2]} 21... Bxd5 {[%clk 0:01:16.9]} 22. Bxd5 {[%clk 0:01:14.5]}
22... Rad8 {[%clk 0:01:17.4]} 23. Be4 {[%clk 0:01:13.5]} 23... Qxf2+ {[%clk
0:01:02]} 24. Bxf2 {[%clk 0:01:12.2]} 24... Ne2+ {[%clk 0:00:58.4]} 25. Kh1
{[%clk 0:01:10.8]} 25... h6 {[%clk 0:00:26.1]} 26. Ra1 {[%clk 0:00:56]} 26... a5
{[%clk 0:00:25.7]} 27. Ra2 {[%clk 0:00:55.1]} 27... Nd4 {[%clk 0:00:21.5]} 28.
g4 {[%clk 0:00:49.3]} 28... Re7 {[%clk 0:00:17.9]} 29. Kg2 {[%clk 0:00:48]}
29... Nb5 {[%clk 0:00:17.7]} 30. Bg3 {[%clk 0:00:46.4]} 30... Be5 {[%clk
0:00:16.5]} 31. Bh4 {[%clk 0:00:45.4]} 31... f6 {[%clk 0:00:16.6]} 32. b3 {[%clk
0:00:41.5]} 32... Nc3 {[%clk 0:00:15.7]} 33. Rc2 {[%clk 0:00:34.1]} 33... Nxe4
{[%clk 0:00:15.5]} 34. dxe4 {[%clk 0:00:34.1]} 34... Rd3 {[%clk 0:00:15.8]} 35.
Rf3 {[%clk 0:00:34.1]} 35... Red7 {[%clk 0:00:16.2]} 36. Re2 {[%clk 0:00:31.2]}
36... Rxf3 {[%clk 0:00:14.4]} 37. Kxf3 {[%clk 0:00:31]} 37... Rd3+ {[%clk
0:00:11.1]} 38. Re3 {[%clk 0:00:31]} 38... Rxe3+ {[%clk 0:00:11]} 39. Kxe3
{[%clk 0:00:30.2]} 39... Bxh2 {[%clk 0:00:11.5]} 40. Kd3 {[%clk 0:00:28.8]}
40... b5 {[%clk 0:00:11.5]} 41. Bf2 {[%clk 0:00:27.2]} 41... Bd6 {[%clk
0:00:11.1]} 42. Be1 {[%clk 0:00:26.8]} 42... Bc7 {[%clk 0:00:10.5]} 43. Bf2
{[%clk 0:00:25.7]} 43... Bb6 {[%clk 0:00:10.6]} 44. Bg3 {[%clk 0:00:23.2]} 44...
Kf7 {[%clk 0:00:10.2]} 45. e5 {[%clk 0:00:22.7]} 45... fxe5 {[%clk 0:00:10.3]}
46. Bxe5 {[%clk 0:00:21.6]} 46... g6 {[%clk 0:00:10]} 47. Bd6 {[%clk 0:00:19.6]}
47... gxf5 {[%clk 0:00:09.6]} 48. gxf5 {[%clk 0:00:19.7]} 48... h5 {[%clk
0:00:10.2]} 49. Ke4 {[%clk 0:00:18]} 49... h4 {[%clk 0:00:09.6]} 50. Kd5 {[%clk
0:00:16.7]} 50... a4 {[%clk 0:00:09.7]} 51. bxa4 {[%clk 0:00:15.6]} 51... bxa4
{[%clk 0:00:09.9]} 52. Kc4 {[%clk 0:00:15.7]} 52... Kf6 {[%clk 0:00:08.7]} 53.
Bf4 {[%clk 0:00:11.3]} 53... Kxf5 {[%clk 0:00:06.4]} 54. Bh2 {[%clk 0:00:12.2]}
54... h3 {[%clk 0:00:06.1]} 55. Bd6 {[%clk 0:00:10.2]} 55... a3 {[%clk
0:00:05.8]} 56. Kb3 {[%clk 0:00:09.2]} 56... Bd8 {[%clk 0:00:05.2]} 57. Kxa3
{[%clk 0:00:07.8]} 57... Bf6 {[%clk 0:00:05.8]} 58. Kb3 {[%clk 0:00:04.9]} 58...
Be5 {[%clk 0:00:05.6]} 59. Bxe5 {[%clk 0:00:02.8]} 59... Kxe5 {[%clk 0:00:05.1]}
60. Kc4 {[%clk 0:00:03.7]} 60... h2 {[%clk 0:00:06]} 61. Kb5 {[%clk 0:00:04.6]}
61... h1=Q {[%clk 0:00:06.9]} 0-1